fUST/lending_fUST_20250916
["ID","MTS","AMOUNT","RATE_DAILY","PERIOD"]
[385778556,1758033057775,-168.0,0.00024352,2]
[385778557,1758033057787,-151.0,0.00024352,7]
[385778558,1758033057800,-157.762011,0.00024352,7]
[385778559,1758033057812,-177.773025,0.00024352,7]
[385778560,1758033057824,-177.773025,0.00024352,7]
[385778561,1758033057837,-151.0,0.00024352,7]
[385778562,1758033057849,-177.773025,0.00024352,7]
[385778563,1758033057862,-177.773017,0.00024352,7]
[385778564,1758033057876,-2500.0,0.00024364,2]
[385778565,1758033057888,-2500.0,0.00024364,2]
[385778566,1758033057900,-500.0,0.00024383,2]
[385778567,1758033057913,-183.6368369,0.00024383,2]
[385778568,1758033057926,-500.0,0.00024383,2]
[385778569,1758033057938,-151.0,0.00024383,2]
[385778570,1758033057950,-151.0,0.00024383,2]
[385778571,1758033057963,-151.0,0.00024383,2]
[385778572,1758033057976,-732.0,0.00024383,2]
[385778573,1758033057988,-480.0,0.00024383,3]
[385778574,1758033058000,-480.0,0.00024383,3]
[385778575,1758033058013,-838.0,0.00024383,3]
[385778576,1758033058024,-507.33,0.00024383,3]
[385778577,1758033058033,-151.0,0.00024383,7]
[385778578,1758033058042,-151.0,0.00024383,7]
[385778579,1758033058151,-151.0,0.00024383,7]
[385778580,1758033058199,-480.0,0.00024383,3]
[385778581,1758033058209,-480.0,0.00024383,3]
[385778582,1758033058219,-480.0,0.00024383,3]
[385778583,1758033058229,-151.0,0.00024383,7]
[385778584,1758033058238,-540.2,0.00024383,3]
[385778585,1758033058247,-151.0,0.00024383,7]
[385778586,1758033058258,-251.6631,0.00024383,7]
[385778587,1758033058268,-761.92,0.00024383,3]
[385778588,1758033058277,-480.0,0.00024383,3]
[385778589,1758033058286,-480.0,0.00024383,3]
[385778590,1758033058295,-1015.22,0.00024383,3]
[385778591,1758033058305,-480.0,0.00024383,3]
[385778592,1758033058314,-480.0,0.00024383,3]
[385778593,1758033058323,-480.0,0.00024383,3]
[385778594,1758033058333,-1077.14,0.00024383,3]
[385778595,1758033058343,-1203.36,0.00024383,3]
[385778596,1758033058352,-836.46,0.00024383,3]
[385778597,1758033058362,-480.0,0.00024383,3]
[385778598,1758033058372,-480.0,0.00024383,3]
[385778599,1758033058382,-2542.77,0.00024383,3]
[385778600,1758033058391,-480.0,0.00024383,3]
[385778601,1758033058401,-6141.36,0.00024383,3]
[385778602,1758033058410,-480.0,0.00024383,3]
[385778603,1758033058420,-10519.97,0.00024383,3]
[385778604,1758033058431,-658.35,0.00024383,3]
[385778605,1758033058440,-480.0,0.00024383,3]
[385778606,1758033058449,-480.0,0.00024383,3]
[385778607,1758033058459,-1840.34,0.00024383,3]
[385778608,1758033058468,-996.22,0.00024383,3]
[385778609,1758033058477,-1480.9,0.00024383,3]
[385778610,1758033058487,-480.0,0.00024383,3]
[385778611,1758033058497,-660.97,0.00024383,3]
[385778612,1758033058506,-963.27,0.00024383,3]
[385778613,1758033058515,-1376.66,0.00024383,3]
[385778614,1758033058524,-480.0,0.00024383,3]
[385778615,1758033058534,-1069.08,0.00024383,3]
[385778616,1758033058543,-1089.45,0.00024383,3]
[385778617,1758033058552,-480.0,0.00024383,3]
[385778618,1758033058561,-3812.15,0.00024383,3]
[385778619,1758033058571,-480.0,0.00024383,3]
[385778620,1758033058580,-480.0,0.00024383,3]
[385778621,1758033058589,-1195.44,0.00024383,3]
[385778622,1758033058598,-480.0,0.00024383,3]
[385778623,1758033058607,-573.6,0.00024383,3]
[385778624,1758033058616,-480.0,0.00024383,3]
[385778625,1758033058625,-480.0,0.00024383,3]
[385778626,1758033058634,-480.0,0.00024383,3]
[385778627,1758033058643,-553.29,0.00024383,3]
[385778628,1758033058652,-769.04,0.00024383,3]
[385778629,1758033058661,-1200.81,0.00024383,3]
[385778630,1758033058671,-480.0,0.00024383,3]
[385778631,1758033058680,-883.33,0.00024383,3]
[385778632,1758033058690,-728.31,0.00024383,3]
[385778633,1758033058699,-480.0,0.00024383,3]
[385778634,1758033058708,-2518.46,0.00024383,3]
[385778635,1758033058717,-2450.58,0.00024383,3]
[385778636,1758033058726,-800.0,0.00024385,2]
[385778637,1758033058735,-800.0,0.00024392,2]
[385778638,1758033058745,-168.0,0.00024477,2]
[385778639,1758033058754,-500.0,0.00024503,2]
[385778640,1758033058763,-3064.949,0.00024503,2]
[385778641,1758033058772,-460.0,0.00024521,2]
[385778642,1758033058782,-800.0,0.00024524,2]
[385778643,1758033058791,-4096.69853937,0.0002465,2]
[385778644,1758033058800,-321.68613877,0.00024657,2]
[385778645,1758033058810,-500.0,0.00024657,2]
[385778646,1758033058820,-151.0,0.00024657,2]
[385778647,1758033058829,-151.0,0.00024657,2]
[385778648,1758033058839,-196.15,0.00024657,2]
[385778649,1758033058848,-732.0,0.00024657,2]
[385778650,1758033058858,-200.0,0.00024657,2]
[385778651,1758033058866,-200.0,0.00024657,5]
[385778652,1758033058875,-151.0,0.00024657,7]
[385778653,1758033058884,-480.0,0.00024657,3]
[385778654,1758033058894,-480.0,0.00024657,3]
[385778655,1758033058903,-838.0,0.00024657,3]
[385778656,1758033058913,-507.33,0.00024657,3]
[385778657,1758033058922,-480.0,0.00024657,3]
[385778658,1758033058933,-480.0,0.00024657,3]
[385778659,1758033058942,-255.68,0.00024657,3]
[385778660,1758033058951,-540.2,0.00024657,3]
[385778661,1758033058960,-761.92,0.00024657,3]
[385778662,1758033058969,-405.72,0.00024657,3]
[385778663,1758033058978,-480.0,0.00024657,3]
[385778664,1758033058987,-1015.22,0.00024657,3]
[385778665,1758033058996,-480.0,0.00024657,3]
[385778666,1758033059005,-480.0,0.00024657,3]
[385778667,1758033059015,-480.0,0.00024657,3]
[385778668,1758033059024,-1077.14,0.00024657,3]
[385778669,1758033059033,-1203.36,0.00024657,3]
[385778670,1758033059042,-836.46,0.00024657,3]
[385778671,1758033059051,-480.0,0.00024657,3]
[385778672,1758033059060,-480.0,0.00024657,3]
[385778673,1758033059070,-2542.77,0.00024657,3]
[385778674,1758033059078,-480.0,0.00024657,3]
[385778675,1758033059088,-6141.36,0.00024657,3]
[385778676,1758033059097,-480.0,0.00024657,3]
[385778677,1758033059107,-10519.97,0.00024657,3]
[385778678,1758033059116,-658.35,0.00024657,3]
[385778679,1758033059125,-480.0,0.00024657,3]
[385778680,1758033059134,-480.0,0.00024657,3]
[385778681,1758033059144,-1840.34,0.00024657,3]
[385778682,1758033059153,-996.22,0.00024657,3]
[385778683,1758033059162,-1480.9,0.00024657,3]
[385778684,1758033059172,-480.0,0.00024657,3]
[385778685,1758033059184,-660.97,0.00024657,3]
[385778686,1758033059193,-963.27,0.00024657,3]
[385778687,1758033059202,-1376.66,0.00024657,3]
[385778688,1758033059211,-480.0,0.00024657,3]
[385778689,1758033059219,-1069.08,0.00024657,3]
[385778690,1758033059229,-1089.45,0.00024657,3]
[385778691,1758033059238,-480.0,0.00024657,3]
[385778692,1758033059247,-3812.15,0.00024657,3]
[385778693,1758033059257,-480.0,0.00024657,3]
[385778694,1758033059267,-480.0,0.00024657,3]
[385778695,1758033059276,-1195.44,0.00024657,3]
[385778696,1758033059285,-480.0,0.00024657,3]
[385778697,1758033059294,-207.19,0.00024657,3]
[385778698,1758033059303,-480.0,0.00024657,3]
[385778699,1758033059313,-480.0,0.00024657,3]
[385778700,1758033059322,-553.29,0.00024657,3]
[385778701,1758033059332,-769.04,0.00024657,3]
[385778702,1758033059342,-1200.81,0.00024657,3]
[385778703,1758033059352,-480.0,0.00024657,3]
[385778704,1758033059361,-883.33,0.00024657,3]
[385778705,1758033059371,-728.31,0.00024657,3]
[385778706,1758033059380,-480.0,0.00024657,3]
[385778707,1758033059389,-2518.46,0.00024657,3]
[385778708,1758033059398,-2450.58,0.00024657,3]
[385778709,1758033059408,-150.0,0.00024658,2]
[385778710,1758033059417,-280.0,0.00024658,2]
[385778711,1758033059426,-500.0,0.00024658,2]
[385778712,1758033059436,-2500.0,0.00024664,2]
[385778713,1758033059446,-168.0,0.00024699,2]
[385778714,1758033059456,-685.03,0.000247,7]
[385778715,1758033059465,-657.0,0.000247,7]
[385778716,1758033059475,-1500.27064649,0.00024712,2]
[385778717,1758033059484,-168.0,0.00024747,2]
[385778718,1758033059493,-151.0,0.000248,7]
[385778719,1758033059503,-151.0,0.000248,7]
[385778720,1758033059512,-800.0,0.00024827,2]
[385778721,1758033059521,-1115.0,0.00024847,2]
[385778722,1758033059531,-901.46908503,0.00024896,2]
[385778723,1758033059540,-151.0,0.000249,7]
[385778724,1758033059550,-151.0,0.000249,7]
[385778725,1758033059559,-383436.634616,0.000249,2]
[385778726,1758033059568,-800.0,0.00024907,2]
[385778727,1758033059578,-800.0,0.00024907,2]
[385778728,1758033059588,-800.0,0.00024907,2]
[385778729,1758033059597,-3000.0,0.00024912,2]
[385778730,1758033059606,-2239.88184295,0.00024912,2]
[385778731,1758033060169,-272.13507429,0.00021302,2]
[385778732,1758033060183,-480.0,0.00021917,2]
[385778733,1758033060192,-480.0,0.00021917,2]
[385778734,1758033060201,-330.02405661,0.00022191,3]
[385778735,1758033060502,-39.35953861,0.00022191,3]
[385778736,1758033060513,-110.61640478,0.00022191,3]
[385778737,1758033060523,-480.0,0.00022191,3]
[385778738,1758033060532,-151.0,0.00022191,7]
[385778739,1758033060541,-392.99365713,0.00022191,3]
[385778740,1758033060550,-480.0,0.00022191,3]
[385778741,1758033060560,-480.0,0.00022465,3]
[385778742,1758033060568,-480.0,0.00022465,3]
[385778743,1758033060578,-151.0,0.00022465,7]
[385778744,1758033060587,-480.0,0.00022465,3]
[385778745,1758033060597,-1100.29730232,0.00022739,3]
[385778746,1758033060775,-272.13507429,0.00021338,2]
[385778747,1758033060784,-157.03492571,0.000214,2]
[385778748,1758033060797,-342.96507429,0.000214,2]
[385778749,1758033060807,-500.0,0.000214,2]
[385778750,1758033060816,-500.0,0.000214,2]
[385778751,1758033060826,-630.80055956,0.000214,2]
[385778752,1758033060835,-500.0,0.000214,2]
[385778753,1758033060845,-500.0,0.000214,2]
[385778754,1758033060854,-500.0,0.000214,2]
[385778755,1758033060863,-500.0,0.000214,2]
[385778756,1758033060872,-500.0,0.000214,2]
[385778757,1758033060881,-500.0,0.000214,2]
[385778758,1758033060890,-598.5417139,0.000214,2]
[385778759,1758033060899,-236.13643856,0.000214,2]
[385778760,1758033060909,-500.0,0.000214,2]
[385778761,1758033060917,-500.0,0.000214,2]
[385778762,1758033060927,-500.0,0.000214,2]
[385778763,1758033060938,-500.0,0.000214,2]
[385778764,1758033060947,-500.0,0.000214,2]
[385778765,1758033060956,-260.09237525,0.000214,2]
[385778766,1758033060966,-217.07180192,0.000214,2]
[385778767,1758033060975,-500.0,0.000214,2]
[385778768,1758033060984,-500.0,0.000214,2]
[385778769,1758033060994,-500.0,0.000214,2]
[385778770,1758033061003,-480.0,0.00021917,2]
[385778771,1758033061012,-314.99276552,0.00021917,2]
[385778772,1758033061050,-165.00723448,0.00021917,2]
[385778773,1758033061060,-480.0,0.00022191,3]
[385778774,1758033061070,-230.70476336,0.00022191,3]
[385778775,1758033061079,-336.3,0.00022455,3]
[385778776,1758033061088,-480.0,0.00022465,3]
[385778777,1758033061098,-597.43269768,0.00022739,3]
[385778778,1758033061107,-480.0,0.00022739,3]
[385778779,1758033061116,-480.0,0.00022739,3]
[385778780,1758033061125,-480.0,0.00022739,3]
[385778781,1758033061135,-151.0,0.00022739,7]
[385778782,1758033061144,-480.0,0.00022739,3]
[385778783,1758033061153,-217.86301978,0.00023,3]
[385778784,1758033061162,-1697.73,0.00023013,3]
[385778785,1758033061172,-480.0,0.00023013,3]
[385778786,1758033061188,-480.0,0.00023013,3]
[385778787,1758033061197,-480.0,0.00023013,3]
[385778788,1758033061206,-151.0,0.00023013,7]
[385778789,1758033061216,-415.15724759,0.00023013,3]
[385778790,1758033061226,-1697.73,0.00023287,3]
[385778791,1758033061236,-480.0,0.00023287,3]
[385778792,1758033061246,-480.0,0.00023287,3]
[385778793,1758033061256,-480.0,0.00023287,3]
[385778794,1758033061266,-1697.73,0.00023561,3]
[385778795,1758033061275,-480.0,0.00023561,3]
[385778796,1758033061285,-1697.73,0.00023835,3]
[385778797,1758033061294,-217.86301978,0.00024,7]
[385778798,1758033061304,-1697.73,0.00024109,3]
[385778799,1758033061313,-1697.73,0.00024383,3]
[385778800,1758033061323,-1697.73,0.00024657,3]
[385778801,1758033061332,-164.2315157,0.00024912,2]
[385778802,1758033061341,-168.0,0.00024916,2]
[385778803,1758033061351,-500.0,0.00024931,2]
[385778804,1758033061360,-170.31206507,0.00024931,2]
[385778805,1758033061369,-205.22415184,0.00024931,2]
[385778806,1758033061379,-732.0,0.00024931,2]
[385778807,1758033061388,-480.0,0.00024931,3]
[385778808,1758033061398,-480.0,0.00024931,3]
[385778809,1758033061407,-838.0,0.00024931,3]
[385778810,1758033061417,-507.33,0.00024931,3]
[385778811,1758033061426,-480.0,0.00024931,3]
[385778812,1758033061436,-480.0,0.00024931,3]
[385778813,1758033061446,-540.2,0.00024931,3]
[385778814,1758033061455,-761.92,0.00024931,3]
[385778815,1758033061464,-1015.22,0.00024931,3]
[385778816,1758033061473,-480.0,0.00024931,3]
[385778817,1758033061482,-480.0,0.00024931,3]
[385778818,1758033061492,-1077.14,0.00024931,3]
[385778819,1758033061501,-1203.36,0.00024931,3]
[385778820,1758033061510,-836.46,0.00024931,3]
[385778821,1758033061519,-480.0,0.00024931,3]
[385778822,1758033061528,-480.0,0.00024931,3]
[385778823,1758033061538,-2542.77,0.00024931,3]
[385778824,1758033061547,-480.0,0.00024931,3]
[385778825,1758033061556,-6141.36,0.00024931,3]
[385778826,1758033061565,-480.0,0.00024931,3]
[385778827,1758033061574,-10519.97,0.00024931,3]
[385778828,1758033061583,-658.35,0.00024931,3]
[385778829,1758033061592,-480.0,0.00024931,3]
[385778830,1758033061601,-480.0,0.00024931,3]
[385778831,1758033061610,-1840.34,0.00024931,3]
[385778832,1758033061619,-996.22,0.00024931,3]
[385778833,1758033061628,-1480.9,0.00024931,3]
[385778834,1758033061638,-480.0,0.00024931,3]
[385778835,1758033061647,-660.97,0.00024931,3]
[385778836,1758033061656,-963.27,0.00024931,3]
[385778837,1758033061666,-1376.66,0.00024931,3]
[385778838,1758033061675,-480.0,0.00024931,3]
[385778839,1758033061684,-1069.08,0.00024931,3]
[385778840,1758033061694,-1089.45,0.00024931,3]
[385778841,1758033061703,-480.0,0.00024931,3]
[385778842,1758033061712,-3812.15,0.00024931,3]
[385778843,1758033061721,-480.0,0.00024931,3]
[385778844,1758033061730,-480.0,0.00024931,3]
[385778845,1758033061739,-1195.44,0.00024931,3]
[385778846,1758033061749,-480.0,0.00024931,3]
[385778847,1758033061758,-480.0,0.00024931,3]
[385778848,1758033061768,-480.0,0.00024931,3]
[385778849,1758033061777,-553.29,0.00024931,3]
[385778850,1758033061786,-769.04,0.00024931,3]
[385778851,1758033061795,-1200.81,0.00024931,3]
[385778852,1758033061804,-480.0,0.00024931,3]
[385778853,1758033061814,-883.33,0.00024931,3]
[385778854,1758033061823,-728.31,0.00024931,3]
[385778855,1758033061833,-480.0,0.00024931,3]
[385778856,1758033061842,-2518.46,0.00024931,3]
[385778857,1758033061852,-2450.58,0.00024931,3]
[385778858,1758033061861,-1697.73,0.00024931,3]
[385778859,1758033061870,-500.0,0.00024932,2]
[385778860,1758033061879,-168.0,0.00024947,2]
[385778861,1758033061889,-500.0,0.00024973,2]
[385778862,1758033061898,-168.0,0.00024975,2]
[385778863,1758033061907,-2637.3396265,0.00025,2]
[385778864,1758033061917,-49037.43469975,0.00025,2]
[385778865,1758033061927,-209.08321093,0.00025,2]
[385778866,1758033061938,-10364.0,0.00025,2]
[385778867,1758033061947,-360.94360928,0.00025,2]
[385778868,1758033061957,-500.0,0.00025,2]
[385778869,1758033061966,-105017.09767168,0.00025,2]
[385778870,1758033061976,-600.0,0.00025,2]
[385778871,1758033061985,-503.92421228,0.00025,2]
[385778872,1758033061995,-6499.999999,0.00025,2]
[385778873,1758033062005,-1191.75236917,0.00025,10]
[385778874,1758033062014,-170.55688421,0.00025,2]
[385778875,1758033062024,-240000.0,0.00025,2]
[385778876,1758033062033,-390.2320447,0.00025006,2]
[385778877,1758033062043,-168.0,0.00025019,2]
[385778878,1758033062052,-168.0,0.00025027,2]
[385778879,1758033062062,-560.0,0.00025069,2]
[385778880,1758033062071,-150.0,0.0002515,2]
[385778881,1758033062081,-187.0,0.0002517,2]
[385778882,1758033062090,-500.0,0.00025205,2]
[385778883,1758033062099,-732.0,0.00025205,2]
[385778884,1758033062109,-480.0,0.00025205,3]
[385778885,1758033062118,-480.0,0.00025205,3]
[385778886,1758033062127,-838.0,0.00025205,3]
[385778887,1758033062137,-507.33,0.00025205,3]
[385778888,1758033062146,-480.0,0.00025205,3]
[385778889,1758033062155,-480.0,0.00025205,3]
[385778890,1758033062164,-540.2,0.00025205,3]
[385778891,1758033062174,-761.92,0.00025205,3]
[385778892,1758033062187,-1015.22,0.00025205,3]
[385778893,1758033062196,-480.0,0.00025205,3]
[385778894,1758033062205,-480.0,0.00025205,3]
[385778895,1758033062215,-1077.14,0.00025205,3]
[385778896,1758033062226,-1203.36,0.00025205,3]
[385778897,1758033062236,-836.46,0.00025205,3]
[385778898,1758033062246,-480.0,0.00025205,3]
[385778899,1758033062257,-480.0,0.00025205,3]
[385778900,1758033062266,-2542.77,0.00025205,3]
[385778901,1758033062276,-480.0,0.00025205,3]
[385778902,1758033062285,-6141.36,0.00025205,3]
[385778903,1758033062295,-480.0,0.00025205,3]
[385778904,1758033062305,-10519.97,0.00025205,3]
[385778905,1758033062314,-658.35,0.00025205,3]
[385778906,1758033062323,-480.0,0.00025205,3]
[385778907,1758033062333,-480.0,0.00025205,3]
[385778908,1758033062342,-1840.34,0.00025205,3]
[385778909,1758033062352,-996.22,0.00025205,3]
[385778910,1758033062361,-1480.9,0.00025205,3]
[385778911,1758033062370,-480.0,0.00025205,3]
[385778912,1758033062379,-660.97,0.00025205,3]
[385778913,1758033062389,-963.27,0.00025205,3]
[385778914,1758033062399,-1376.66,0.00025205,3]
[385778915,1758033062408,-480.0,0.00025205,3]
[385778916,1758033062417,-1069.08,0.00025205,3]
[385778917,1758033062427,-1089.45,0.00025205,3]
[385778918,1758033062437,-480.0,0.00025205,3]
[385778919,1758033062446,-3812.15,0.00025205,3]
[385778920,1758033062455,-480.0,0.00025205,3]
[385778921,1758033062464,-480.0,0.00025205,3]
[385778922,1758033062474,-480.0,0.00025205,3]
[385778923,1758033062483,-1195.44,0.00025205,3]
[385778924,1758033062492,-480.0,0.00025205,3]
[385778925,1758033062502,-480.0,0.00025205,3]
[385778926,1758033062511,-553.29,0.00025205,3]
[385778927,1758033062620,-769.04,0.00025205,3]
[385778928,1758033062630,-1200.81,0.00025205,3]
[385778929,1758033062640,-191.21069414,0.00025205,3]
[385778930,1758033062649,-883.33,0.00025205,3]
[385778931,1758033062659,-728.31,0.00025205,3]
[385778932,1758033062668,-480.0,0.00025205,3]
[385778933,1758033062678,-2518.46,0.00025205,3]
[385778934,1758033062687,-2450.58,0.00025205,3]
[385778935,1758033062696,-1697.73,0.00025205,3]
[385778936,1758033062706,-250.0,0.00025205,2]
[385778937,1758033062715,-500.0,0.00025206,2]
[385778938,1758033062724,-398.056,0.00025212,2]
[385778939,1758033062733,-587.0,0.00025269,2]
[385778940,1758033062742,-587.0,0.00025269,2]
[385778941,1758033062752,-300.0,0.00025269,2]
[385778942,1758033062761,-187.0,0.00025316,2]
[385778943,1758033062770,-187.0,0.00025372,2]
[385778944,1758033062779,-168.0,0.00025389,2]
[385778945,1758033062788,-3500.0,0.0002546,2]
[385778946,1758033062797,-977.0,0.00025469,2]
[385778947,1758033062806,-634.0,0.00025469,2]
[385778948,1758033062815,-2157.0,0.00025469,2]
[385778949,1758033062824,-900.0,0.00025469,3]
[385778950,1758033062834,-500.0,0.00025479,2]
[385778951,1758033062843,-732.0,0.00025479,2]
[385778952,1758033062852,-480.0,0.00025479,3]
[385778953,1758033062861,-480.0,0.00025479,3]
[385778954,1758033062871,-838.0,0.00025479,3]
[385778955,1758033062880,-507.33,0.00025479,3]
[385778956,1758033062889,-480.0,0.00025479,3]
[385778957,1758033062898,-480.0,0.00025479,3]
[385778958,1758033062908,-540.2,0.00025479,3]
[385778959,1758033062917,-761.92,0.00025479,3]
[385778960,1758033062927,-1015.22,0.00025479,3]
[385778961,1758033062936,-480.0,0.00025479,3]
[385778962,1758033062946,-480.0,0.00025479,3]
[385778963,1758033062955,-1077.14,0.00025479,3]
[385778964,1758033062964,-1203.36,0.00025479,3]
[385778965,1758033062973,-836.46,0.00025479,3]
[385778966,1758033062982,-480.0,0.00025479,3]
[385778967,1758033062992,-262.34026314,0.00025479,3]
[385778968,1758033063001,-2542.77,0.00025479,3]
[385778969,1758033063011,-480.0,0.00025479,3]
[385778970,1758033063020,-6141.36,0.00025479,3]
[385778971,1758033063029,-480.0,0.00025479,3]
[385778972,1758033063039,-10519.97,0.00025479,3]
[385778973,1758033063049,-658.35,0.00025479,3]
[385778974,1758033063059,-480.0,0.00025479,3]
[385778975,1758033063068,-480.0,0.00025479,3]
[385778976,1758033063078,-1840.34,0.00025479,3]
[385778977,1758033063087,-996.22,0.00025479,3]
[385778978,1758033063097,-1480.9,0.00025479,3]
[385778979,1758033063107,-480.0,0.00025479,3]
[385778980,1758033063116,-660.97,0.00025479,3]
[385778981,1758033063126,-963.27,0.00025479,3]
[385778982,1758033063136,-1376.66,0.00025479,3]
[385778983,1758033063146,-480.0,0.00025479,3]
[385778984,1758033063155,-1069.08,0.00025479,3]
[385778985,1758033063164,-1089.45,0.00025479,3]
[385778986,1758033063174,-238.13,0.00025479,3]
[385778987,1758033063187,-3812.15,0.00025479,3]
[385778988,1758033063197,-480.0,0.00025479,3]
[385778989,1758033063206,-530.54,0.00025479,3]
[385778990,1758033063216,-380.09777641,0.00025479,3]
[385778991,1758033063226,-1195.44,0.00025479,3]
[385778992,1758033063236,-480.0,0.00025479,3]
[385778993,1758033063246,-480.0,0.00025479,3]
[385778994,1758033063261,-553.29,0.00025479,3]
[385778995,1758033063271,-769.04,0.00025479,3]
[385778996,1758033063281,-1200.81,0.00025479,3]
[385778997,1758033063291,-883.33,0.00025479,3]
[385778998,1758033063301,-728.31,0.00025479,3]
[385778999,1758033063310,-480.0,0.00025479,3]
[385779000,1758033063319,-2518.46,0.00025479,3]
[385779001,1758033063329,-2450.58,0.00025479,3]
[385779002,1758033063338,-1697.73,0.00025479,3]
[385779003,1758033063348,-500.0,0.0002548,2]
[385779004,1758033063358,-1000.0,0.000255,2]
[385779005,1758033063367,-2351.0,0.00025508,2]
[385779006,1758033063377,-500.0,0.00025521,2]
[385779007,1758033063386,-7406.4991855,0.00025609,2]
[385779008,1758033063396,-187.0,0.0002561,2]
[385779009,1758033063406,-660.0,0.00025617,2]
[385779010,1758033063416,-168.0,0.00025664,2]
[385779011,1758033063426,-187.0,0.00025716,2]
[385779012,1758033063436,-151.0,0.00025753,2]
[385779013,1758033063447,-732.0,0.00025753,2]
[385779014,1758033063456,-480.0,0.00025753,3]
[385779015,1758033063466,-564.22,0.00025753,3]
[385779016,1758033063476,-838.0,0.00025753,3]
[385779017,1758033063485,-507.33,0.00025753,3]
[385779018,1758033063495,-480.0,0.00025753,3]
[385779019,1758033063505,-480.0,0.00025753,3]
[385779020,1758033063515,-540.2,0.00025753,3]
[385779021,1758033063524,-761.92,0.00025753,3]
[385779022,1758033063534,-1015.22,0.00025753,3]
[385779023,1758033063543,-480.0,0.00025753,3]
[385779024,1758033063553,-480.0,0.00025753,3]
[385779025,1758033063563,-1077.14,0.00025753,3]
[385779026,1758033063573,-1203.36,0.00025753,3]
[385779027,1758033063583,-285.94,0.00025753,3]
[385779028,1758033063592,-836.46,0.00025753,3]
[385779029,1758033063602,-2542.77,0.00025753,3]
[385779030,1758033063612,-480.0,0.00025753,3]
[385779031,1758033063621,-6141.36,0.00025753,3]
[385779032,1758033063631,-480.0,0.00025753,3]
[385779033,1758033063641,-10519.97,0.00025753,3]
[385779034,1758033063650,-658.35,0.00025753,3]
[385779035,1758033063659,-480.0,0.00025753,3]
[385779036,1758033063669,-480.0,0.00025753,3]
[385779037,1758033063679,-1840.34,0.00025753,3]
[385779038,1758033063689,-996.22,0.00025753,3]
[385779039,1758033063699,-1480.9,0.00025753,3]
[385779040,1758033063709,-568.01,0.00025753,3]
[385779041,1758033063718,-660.97,0.00025753,3]
[385779042,1758033063728,-963.27,0.00025753,3]
[385779043,1758033063737,-1376.66,0.00025753,3]
[385779044,1758033063747,-590.59637423,0.00025753,3]
[385779045,1758033063756,-1069.08,0.00025753,3]
[385779046,1758033063766,-1089.45,0.00025753,3]
[385779047,1758033063775,-3812.15,0.00025753,3]
[385779048,1758033063784,-480.0,0.00025753,3]
[385779049,1758033063794,-1195.44,0.00025753,3]
[385779050,1758033063803,-480.0,0.00025753,3]
[385779051,1758033063813,-480.0,0.00025753,3]
[385779052,1758033063823,-553.29,0.00025753,3]
[385779053,1758033063832,-769.04,0.00025753,3]
[385779054,1758033063842,-1200.81,0.00025753,3]
[385779055,1758033063852,-883.33,0.00025753,3]